Workbook

Sheet паспорт
A1: ПАТ "УКРТРАНСГАЗ" | G1: ПАСПОРТ ФІЗИКО-ХІМІЧНИХ ПОКАЗНИКІВ ПРИРОДНОГО ГАЗУ № 653
A2: Філія "УМГ "ХАРКІВТРАНСГАЗ" | G2: переданого Сєвєродонецьким ЛВУМГ та прийнятого ПАТ "Луганськгаз", ПАТ "РКТК"
A3: Сєвєродонецьке ЛВУМГ | G3: Маршрут № 653
A4: Вимірювальна хіміко-аналітична лабораторія
A5: Свідоцтво № РЬ089/2014 чинно до 06.06.2017 р. | K5: по газопроводу "Луганськ-Лисичанськ-Рубіжне" | V5: за період з | X5: 01.02.2017 р. | Z5: по | AA5: 28.02.2017 р.
A7: Число місяця | B7: Компонентний склад, мол. % | N7: Фізико-хімічні показники газу обчислені на основі компонентного складу, 101,325 кПа | X7: Температура точки роси за вологою (Р = 3.92 МПа), °С | Y7: Температура точки роси за вуглеводнями, °С | Z7: Вміст сірководню, г/м3 | AA7: Вміст меркаптанової сірки, г/м3 | AB7: Вміст механічних домішок, г/м3
N8: Густина абсолютна, кг/м3,при 20 °С, | O8: Температура вимірювання/згоряння при 20/25°С
B9: метан, С1 | C9: етан, С2 | D9: пропан, С3 | E9: ізо-бутан, і-С4 | F9: н-бутан, н-С4 | G9: нео-пентан, нео-С5 | H9: ізо-пентан, і-С5 | I9: н-пентан, н-С5 | J9: гексани та вищі, С6+ | K9: кисень, О2 | L9: азот, N2 | M9: діоксид вуглецю, CО2 | O9: Теплота згоряння нижча | R9: Теплота згоряння вища | U9: Число Воббе вище
O10: ккал/м³ | P10: МДж/м³ | Q10: кВт⋅год/м³ | R10: ккал/м³ | S10: МДж/м³ | T10: кВт⋅год/м³ | U10: ккал/м³ | V10: МДж/м³ | W10: кВт⋅год/м³
A11: 1 | N11: 0.7445 | O11: =P11*238.8459 -> 8153.792988 | P11: 34.1383 | Q11: =P11/3.6 -> 9.482861111 | R11: =S11*238.8459 -> 9028.876596 | S11: 37.8021 | T11: =S11/3.6 -> 10.50058333 | U11: =V11/0.0041868 -> 11493.67058 | V11: 48.1217 | W11: =V11/3.6 -> 13.36713889 | AC11: =SUM(B11:M11)+$K$42+$N$42 -> 0
A12: 2 | N12: 0.7491 | O12: =P12*238.8459 -> 8153.792988 | P12: 34.1383 | Q12: =P12/3.6 -> 9.482861111 | R12: =S12*238.8459 -> 9028.876596 | S12: 37.8021 | T12: =S12/3.6 -> 10.50058333 | U12: =V12/0.0041868 -> 11493.67058 | V12: 48.1217 | W12: =V12/3.6 -> 13.36713889 | AC12: 0
A13: 3 | B13: 91.0004 | C13: 3.3583 | D13: 1.1484 | E13: 0.1389 | F13: 0.2355 | G13: 0.0035 | H13: 0.0538 | I13: 0.0463 | J13: 0.0403 | K13: 0.01 | L13: 2.9188 | M13: 1.0458 | N13: 0.7526 | O13: =P13*238.8459 -> 8126.540671 | P13: 34.0242 | Q13: =P13/3.6 -> 9.451166667 | R13: =S13*238.8459 -> 9000.047896 | S13: 37.6814 | T13: =S13/3.6 -> 10.46705556 | U13: =V13/0.0041868 -> 11494.74539 | V13: 48.1262 | W13: =V13/3.6 -> 13.36838889 | AC13: 100 | AD13: =IF(AC13=100,"ОК"," ") -> ОК
A14: 4 | N14: 0.756 | O14: =P14*238.8459 -> 8126.540671 | P14: 34.0242 | Q14: =P14/3.6 -> 9.451166667 | R14: =S14*238.8459 -> 9000.047896 | S14: 37.6814 | T14: =S14/3.6 -> 10.46705556 | U14: =V14/0.0041868 -> 11494.74539 | V14: 48.1262 | W14: =V14/3.6 -> 13.36838889 | AC14: 0 | AD14: =IF(AC14=100,"ОК"," ") -> 
A15: 5 | N15: 0.7593 | O15: 8126.540671 | P15: 34.0242 | Q15: 9.451166667 | R15: 9000.047896 | S15: 37.6814 | T15: 10.46705556 | U15: 11494.74539 | V15: 48.1262 | W15: 13.36838889 | AC15: 0
A16: 6 | N16: 0.7535 | O16: 8126.540671 | P16: 34.0242 | Q16: 9.451166667 | R16: 9000.047896 | S16: 37.6814 | T16: 10.46705556 | U16: 11494.74539 | V16: 48.1262 | W16: 13.36838889 | AC16: 0
A17: 7 | N17: 0.7407 | O17: 8126.540671 | P17: 34.0242 | Q17: 9.451166667 | R17: 9000.047896 | S17: 37.6814 | T17: 10.46705556 | U17: 11494.74539 | V17: 48.1262 | W17: 13.36838889 | AC17: 0
A18: 8 | N18: 0.7375 | O18: 8126.540671 | P18: 34.0242 | Q18: 9.451166667 | R18: 9000.047896 | S18: 37.6814 | T18: 10.46705556 | U18: 11494.74539 | V18: 48.1262 | W18: 13.36838889 | AC18: 0
A19: 9 | N19: 0.7375 | O19: 8126.540671 | P19: 34.0242 | Q19: 9.451166667 | R19: 9000.047896 | S19: 37.6814 | T19: 10.46705556 | U19: 11494.74539 | V19: 48.1262 | W19: 13.36838889 | AC19: 0
A20: 10 | N20: 0.7408 | O20: 8126.540671 | P20: 34.0242 | Q20: 9.451166667 | R20: 9000.047896 | S20: 37.6814 | T20: 10.46705556 | U20: 11494.74539 | V20: 48.1262 | W20: 13.36838889 | AC20: 0
A21: 11 | N21: 0.7429 | O21: 8126.540671 | P21: 34.0242 | Q21: 9.451166667 | R21: 9000.047896 | S21: 37.6814 | T21: 10.46705556 | U21: 11494.74539 | V21: 48.1262 | W21: 13.36838889 | AC21: 0
A22: 12 | N22: 0.7463 | O22: 8126.540671 | P22: 34.0242 | Q22: 9.451166667 | R22: 9000.047896 | S22: 37.6814 | T22: 10.46705556 | U22: 11494.74539 | V22: 48.1262 | W22: 13.36838889 | AC22: 0
A23: 13 | B23: 90.276 | C23: 3.2583 | D23: 1.204 | E23: 0.1523 | F23: 0.2699 | G23: 0.0035 | H23: 0.0567 | I23: 0.04781 | J23: 0.0482 | K23: 0.0097 | L23: 3.0891 | M23: 1.5842 | N23: 0.7484 | O23: =P23*238.8459 -> 8083.142371 | P23: 33.8425 | Q23: =P23/3.6 -> 9.400694444 | R23: =S23*238.8459 -> 8951.394986 | S23: 37.4777 | T23: =S23/3.6 -> 10.41047222 | U23: =V23/0.0041868 -> 11368.30037 | V23: 47.5968 | W23: =V23/3.6 -> 13.22133333 | AC23: 99.99971
A24: 14 | N24: 0.7462 | O24: =P24*238.8459 -> 8083.142371 | P24: 33.8425 | Q24: =P24/3.6 -> 9.400694444 | R24: =S24*238.8459 -> 8951.394986 | S24: 37.4777 | T24: =S24/3.6 -> 10.41047222 | U24: =V24/0.0041868 -> 11368.30037 | V24: 47.5968 | W24: =V24/3.6 -> 13.22133333 | AC24: 0
A25: 15 | N25: 0.7498 | O25: 8083.142371 | P25: 33.8425 | Q25: 9.400694444 | R25: 8951.394986 | S25: 37.4777 | T25: 10.41047222 | U25: 11368.30037 | V25: 47.5968 | W25: 13.22133333 | X25: -12.3 | Y25: -15.2 | AC25: 0
A26: 16 | N26: 0.7478 | O26: 8083.142371 | P26: 33.8425 | Q26: 9.400694444 | R26: 8951.394986 | S26: 37.4777 | T26: 10.41047222 | U26: 11368.30037 | V26: 47.5968 | W26: 13.22133333 | AC26: 0
A27: 17 | N27: 0.7466 | O27: 8083.142371 | P27: 33.8425 | Q27: 9.400694444 | R27: 8951.394986 | S27: 37.4777 | T27: 10.41047222 | U27: 11368.30037 | V27: 47.5968 | W27: 13.22133333 | AC27: 0
A28: 18 | N28: 0.7504 | O28: 8083.142371 | P28: 33.8425 | Q28: 9.400694444 | R28: 8951.394986 | S28: 37.4777 | T28: 10.41047222 | U28: 11368.30037 | V28: 47.5968 | W28: 13.22133333 | AC28: 0
A29: 19 | N29: 0.7555 | O29: 8083.142371 | P29: 33.8425 | Q29: 9.400694444 | R29: 8951.394986 | S29: 37.4777 | T29: 10.41047222 | U29: 11368.30037 | V29: 47.5968 | W29: 13.22133333 | AC29: 0
A30: 20 | N30: 0.7601 | O30: 8083.142371 | P30: 33.8425 | Q30: 9.400694444 | R30: 8951.394986 | S30: 37.4777 | T30: 10.41047222 | U30: 11368.30037 | V30: 47.5968 | W30: 13.22133333 | AC30: 0 | AD30: =IF(AC30=100,"ОК"," ") -> 
A31: 21 | N31: 0.7664 | O31: 8083.142371 | P31: 33.8425 | Q31: 9.400694444 | R31: 8951.394986 | S31: 37.4777 | T31: 10.41047222 | U31: 11368.30037 | V31: 47.5968 | W31: 13.22133333 | AC31: 0
A32: 22 | B32: 88.2421 | C32: 3.4189 | D32: 1.4986 | E32: 0.1979 | F32: 0.3731 | G32: 0.0031 | H32: 0.0775 | I32: 0.0657 | J32: 0.0531 | K32: 0.0134 | L32: 3.6351 | M32: 2.4215 | N32: 0.7672 | O32: =P32*238.8459 -> 8057.514206 | P32: 33.7352 | Q32: =P32/3.6 -> 9.370888889 | R32: =S32*238.8459 -> 8919.700135 | S32: 37.345 | T32: =S32/3.6 -> 10.37361111 | U32: =V32/0.0041868 -> 11175.12181 | V32: 46.788 | W32: =V32/3.6 -> 12.99666667 | Z32: 0.0003 | AA32: 0.004 | AB32: відс | AC32: 100 | AD32: ОК
A33: 23 | N33: 0.7681 | O33: =P33*238.8459 -> 8057.514206 | P33: 33.7352 | Q33: =P33/3.6 -> 9.370888889 | R33: =S33*238.8459 -> 8919.700135 | S33: 37.345 | T33: =S33/3.6 -> 10.37361111 | U33: =V33/0.0041868 -> 11175.12181 | V33: 46.788 | W33: =V33/3.6 -> 12.99666667 | AC33: 0 | AD33: =IF(AC33=100,"ОК"," ") -> 
A34: 24 | N34: 0.7675 | O34: 8057.514206 | P34: 33.7352 | Q34: 9.370888889 | R34: 8919.700135 | S34: 37.345 | T34: 10.37361111 | U34: 11175.12181 | V34: 46.788 | W34: 12.99666667 | AC34: 0
A35: 25 | N35: 0.7669 | O35: 8057.514206 | P35: 33.7352 | Q35: 9.370888889 | R35: 8919.700135 | S35: 37.345 | T35: 10.37361111 | U35: 11175.12181 | V35: 46.788 | W35: 12.99666667 | AC35: 0
A36: 26 | N36: 0.7674 | O36: 8057.514206 | P36: 33.7352 | Q36: 9.370888889 | R36: 8919.700135 | S36: 37.345 | T36: 10.37361111 | U36: 11175.12181 | V36: 46.788 | W36: 12.99666667 | AC36: 0
A37: 27 | N37: 0.768 | O37: 8057.514206 | P37: 33.7352 | Q37: 9.370888889 | R37: 8919.700135 | S37: 37.345 | T37: 10.37361111 | U37: 11175.12181 | V37: 46.788 | W37: 12.99666667 | AC37: 0
A38: 28 | N38: 0.768 | O38: 8057.514206 | P38: 33.7352 | Q38: 9.370888889 | R38: 8919.700135 | S38: 37.345 | T38: 10.37361111 | U38: 11175.12181 | V38: 46.788 | W38: 12.99666667 | AC38: 0
A39: 29 | AC39: 0
A40: 30 | AC40: 0
A41: 31 | AC41: 0
A42: Рівень одоризації відповідає чинним нормативним документам | O42: =SUMPRODUCT(O11:O41,' розрахунок'!F7:F37)/' розрахунок'!F38 -> 8100.125761 | P42: =SUMPRODUCT(P11:P41,' розрахунок'!F7:F37)/' розрахунок'!F38 -> 33.91360606 | Q42: =SUMPRODUCT(Q11:Q41,' розрахунок'!F7:F37)/' розрахунок'!F38 -> 9.420446126 | R42: =SUMPRODUCT(R11:R41,' розрахунок'!F7:F37)/' розрахунок'!F38 -> 8969.676709 | S42: =SUMPRODUCT(S11:S41,' розрахунок'!F7:F37)/' розрахунок'!F38 -> 37.55424191 | T42: =SUMPRODUCT(T11:T41,' розрахунок'!F7:F37)/' розрахунок'!F38 -> 10.43173387
H43: Середньозважене значення теплоти згоряння:
B46: Начальник управління Сєвєродонецького ЛВУМГ Головко Ю.О.
C47: Підрозділу підприємства, якому підпорядкована лабораторія | O47: прізвище | R47: підпис | V47: дата
B48: Інженер ІІ кат.вимірювальної хіміко-аналітичної лабораторії Єрьоменко М.О.
C49: Лабораторія, де здійснювалось вимірювання газу | O49: прізвище | R49: підпис | V49: дата
B50: Начальник служби метрології Ісаєв В.С.
C51: Підрозділу, відповідального за облік газу за маршрутом | O51: прізвище | R51: підпис | V51: дата

Sheet розрахунок (hidden)
A2: Додаток до Паспорту фізико-хімічних показників природного газу по маршруту № 653
A4: Число місяця | B4: Теплота згоряння вища, МДж/м3 | C4: Луганська область | F4: Загальний обсяг газу, м3
C5: Обсяг газу переданого за добу, м3
C6: ГРС Рубіжне город | D6: ГРС Рубіжне завод | E6: РКТК
A7: 1 | B7: 37.8021 | C7: 349125.41 | D7: 1864.32 | E7: 175102.86 | F7: =E7+D7+C7 -> 526092.59
A8: 2 | B8: 37.8021 | C8: 320463.28 | D8: 1654.08 | E8: 162792.23 | F8: 484909.59
A9: 3 | B9: 37.6814 | C9: 312314.34 | D9: 0 | E9: 162288.78 | F9: 474603.12
A10: 4 | B10: 37.6814 | C10: 293652.28 | D10: 486.11 | E10: 156886.52 | F10: 451024.91
A11: 5 | B11: 37.6814 | C11: 282646.38 | D11: 638.84 | E11: 164150.92 | F11: 447436.14
A12: 6 | B12: 37.6814 | C12: 311897.78 | D12: 1113.24 | E12: 128789.52 | F12: 441800.54
A13: 7 | B13: 37.6814 | C13: 347394.06 | D13: 570.2 | E13: 125486.45 | F13: 473450.71
A14: 8 | B14: 37.6814 | C14: 364189.13 | D14: 1393.23 | E14: 147707.78 | F14: 513290.14
A15: 9 | B15: 37.6814 | C15: 362486 | D15: 661.87 | E15: 197595.03 | F15: 560742.9
A16: 10 | B16: 37.6814 | C16: 345496.91 | D16: 1432.85 | E16: 170015.36 | F16: 516945.12
A17: 11 | B17: 37.6814 | C17: 320923.38 | D17: 576.04 | E17: 180402.86 | F17: 501902.28
A18: 12 | B18: 37.6814 | C18: 316072.91 | D18: 564.37 | E18: 190508.59 | F18: 507145.87
A19: 13 | B19: 37.4777 | C19: 298493.38 | D19: 734.84 | E19: 187872.45 | F19: 487100.67
A20: 14 | B20: 37.4777 | C20: 301234.44 | D20: 3611.99 | E20: 187964.86 | F20: 492811.29
A21: 15 | B21: 37.4777 | C21: 291472.81 | D21: 960.6 | E21: 193920.19 | F21: 486353.6
A22: 16 | B22: 37.4777 | C22: 296500.22 | D22: 599.98 | E22: 193924.69 | F22: 491024.89
A23: 17 | B23: 37.4777 | C23: 303536.22 | D23: 543.98 | E23: 173743.5 | F23: 477823.7
A24: 18 | B24: 37.4777 | C24: 282912.5 | D24: 569.39 | E24: 176057.75 | F24: 459539.64
A25: 19 | B25: 37.4777 | C25: 268603.16 | D25: 572.62 | E25: 171737.97 | F25: 440913.75
A26: 20 | B26: 37.4777 | C26: 231818.98 | D26: 0 | E26: 168271.16 | F26: 400090.14
A27: 21 | B27: 37.4777 | C27: 217876.02 | D27: 1205.19 | E27: 176293.69 | F27: 395374.9
A28: 22 | B28: 37.345 | C28: 218820.63 | D28: 976.47 | E28: 135447.39 | F28: 355244.49
A29: 23 | B29: 37.345 | C29: 221909.95 | D29: 666.34 | E29: 178224.88 | F29: 400801.17
A30: 24 | B30: 37.345 | C30: 204177.94 | D30: 659.58 | E30: 151152.91 | F30: 355990.43
A31: 25 | B31: 37.345 | C31: 209331.77 | D31: 722.32 | E31: 164107.48 | F31: 374161.57
A32: 26 | B32: 37.345 | C32: 221213.47 | D32: 962.93 | E32: 168377.56 | F32: 390553.96
A33: 27 | B33: 37.345 | C33: 218970.23 | D33: 1568.6 | E33: 179811.67 | F33: 400350.5
A34: 28 | B34: 37.345 | C34: 211922.69 | D34: 662.71 | E34: 167428.75 | F34: 380014.15
A35: 29
A36: 30
A37: 31
A38: Загальний обсяг газу, м3 | C38: =SUM(C7:C37) -> 7925456.27 | D38: =SUM(D7:D37) -> 25972.69 | E38: =SUM(E7:E37) -> 4736063.8 | F38: =SUM(F7:F37) -> 12687492.76
A39: Енергія, МДж | C39: =SUMPRODUCT(B7:B37,C7:C37) -> 297708660.6 | D39: =SUMPRODUCT(B7:B37,D7:D37) -> 975227.6643 | E39: =SUMPRODUCT(B7:B37,E7:E37) -> 177785284.1 | F39: =SUMPRODUCT(B7:B37,F7:F37) -> 476469172.4
A40: Теплота згоряння (середньозважене значення за місяць), МДж/м³ | C40: =C39/C38 -> 37.56359892 | D40: =D39/D38 -> 37.54819637 | E40: =E39/E38 -> 37.5386168 | F40: =F39/F38 -> 37.55424191
A41: Теплота згоряння (середньозважене значення за місяць), ккал/м³ | C41: =C40*238.8459 -> 8971.911592 | D41: =D40*238.8459 -> 8968.232755 | E41: =E40*238.8459 -> 8965.944714 | F41: =F40*238.8459 -> 8969.676709
A42: Теплота згоряння (середньозважене значення за місяць), кВт*год./м³ | C42: =C40/3.6 -> 10.43433303 | D42: =C40/3.6 -> 10.43433303 | E42: =E40/3.6 -> 10.42739355 | F42: =F40/3.6 -> 10.43173387

Sheet додаток
A2: Додаток до Паспорту фізико-хімічних показників природного газу №653
A4: Область | B4: ГРС, прямий споживач | C4: Cередньозважене значення вищої теплоти згоряння
C5: МДж/м³ | D5: ккал/м³ | E5: кВт*год./м³
A6: Луганська область | B6: ГРС Рубіжне, город | C6: 37.56 | D6: 8972 | E6: 10.43
B7: ГРС Рубіжне, завод | C7: 37.55 | D7: 8968 | E7: 10.43
B8: РКТК | C8: 37.54 | D8: 8966 | E8: 10.43
A9: Середньозважене значення вищої теплоти згоряння по маршруту № 653 | C9: 37.55 | D9: 8970 | E9: 10.43
A13: Начальник управління Сєвєродонецького ЛВУМГ Головко Ю.О.
A14: Підрозділу підприємства, якому підпорядкована лабораторія | D14: прізвище | E14: підпис | F14: дата
A15: Інженер ІІ кат.вимірювальної хіміко-аналітичної лабораторії Єрьоменко М.О.
A16: Лабораторія, де здійснювалось вимірювання газу | D16: прізвище | E16: підпис | F16: дата
A17: Начальник служби метрології Ісаєв В.С.
A18: Підрозділу, відповідального за облік газу за маршрутом | D18: прізвище | E18: підпис | F18: дата
F24: дата
F26: дата
F28: дата

Sheet variablesList (hidden)
A1: 3 | B1: x:\gaysin | C1: 10, 11, 24, 25, 127, 128, 132, 180, 207, 215 | D1: x:\
B2: x:\Illinci
B3: x:\Talne
